Cogmind - Beta 13 @@@ ROGUE MODE // 2024.04.22 @ 20:52:16 Player: RD-BNK(r) Result: Destroyed by B-86 Titan with Railgun Performance ------------- Evolutions (6) 3000 Regions Visited (21) 4200 Robots Destroyed (114) 570 Value Destroyed (2617) 2617 Prototype IDs (55) 1100 Alien Tech Used (1) 200 Bonus (1850) 1850 TOTAL SCORE: 13537 Bonus ------- High Alert Combat Kills 47 Follower Combat Kills 1116 Aligned with FarCom 300 Met Data Miner 300 Met Imprinter 300 Met Warlord at Base 500 MAIN.C Attacked Warlord 500 Friendly Fire -1213 Cogmind --------- Core Integrity 0/1150 Matter 241/300 Energy 99/100 System Corruption 24% Temperature Cool (9) Movement Core (50) Location -4/Factory Parts ------- > --- POWER (2) -------- (None) > --- PROPULSION (6) --- (None) > --- UTILITY (10) ----- Advanced Melee Analysis Suite > --- WEAPON (2) ------- (None) > --- INVENTORY (5) ---- Advanced Sensor Array Advanced Melee Analysis Suite Advanced Melee Analysis Suite Matter Neutralizer Peak State ------------ > --- POWER ------------ Light Antimatter Reactor Improved Fusion Compressor > --- PROPULSION ------- Cooled VTOL Module Cooled VTOL Module Cooled VTOL Module Cooled VTOL Module Cooled VTOL Module Cooled Impulse Thruster > --- UTILITY ---------- Advanced Cooling System Large Storage Unit Advanced Gravity Neutralizer Enhanced Optical Array Advanced Melee Analysis Suite Advanced Melee Analysis Suite Experimental Core Analyzer Improved Transmission Jammer Advanced Hacking Suite System Mapper > --- WEAPON ----------- Heavy Plasma Cannon Spear > --- INVENTORY -------- Fusion Compressor Advanced Power Amplifier Enhanced Optical Array Advanced Sensor Array Advanced Signal Interpreter Microactuators Improved Utility Shielding Layered Medium Armor Plating Advanced Force Field Advanced Hacking Suite Long-range Missile Launcher Field Lobotomy Kit [Rating: 124] Favorites ----------- Power Light Nuclear Core Engine Light Deuterium Engine Power Core Light Nuclear Core Reactor Light Antimatter Reactor Propulsion Cooled VTOL Module Treads Light Treads Leg Aluminum Leg Wheel Armored Wheel Flight Unit Cooled VTOL Module Utility Advanced Melee Analysis Suite Device Structural Scanner Storage Medium Storage Unit Processor Advanced Melee Analysis Suite Hackware System Mapper Protection Hardened Light Armor Plating Weapon Spear Energy Gun Medium Laser Energy Cannon Heavy Plasma Cannon Ballistic Gun Autogun Ballistic Cannon Advanced Assault Cannon Launcher Missile Launcher Special Weapon Plasma Cutter Impact Weapon Heavy Flail Slashing Weapon Chainsword Piercing Weapon Spear Build | -11 -10 -10 -10 -9 -8 -7 -7 -7 -7 -6 -6 -6 -6 -6 -5 -5 -5 -5 -5 -4 -4 ------- Run | Yrd Mat Min Exi Min Mat Fac Low Low Zio Pro Fac Low Low Dat Pro Fac Upp Upp War Pro Fac Slots Evolved 12 | . . . . . 4 2 . . . . 2 . . . . 2 . . . . 2 Power . | . . . . . . . . . . . . . . . . . . . . . . Propulsion 4 | . . . . . 2 . . . . . 1 . . . . 1 . . . . . Utility 8 | . . . . . 2 2 . . . . 1 . . . . 1 . . . . 2 Weapon . | . . . . . . . . . . . . . . . . . . . . . . Parts Attached 282 | 3 8 3 1 2 40 37 11 4 3 5 40 3 4 4 3 18 1 5 22 2 63 Power 32 | . . . . . 2 4 2 . . . 4 . . . . 1 . . 7 1 11 Engine 6 | . . . . . 2 1 1 . . . 2 . . . . . . . . . . Core 17 | . . . . . . 3 1 . . . 2 . . . . 1 . . 3 . 7 Reactor 9 | . . . . . . . . . . . . . . . . . . . 4 1 4 Propulsion 44 | 2 2 . . . 9 5 . . . . 8 . . . . 4 . . 2 . 12 Treads 5 | 2 . . . . 3 . . . . . . . . . . . . . . . . Leg 1 | . . . . . . . . . . . . . . . . 1 . . . . . Wheel 14 | . 2 . . . 5 . . . . . . . . . . . . . . . 7 Hover . | . . . . . . . . . . . . . . . . . . . . . . Flight 24 | . . . . . 1 5 . . . . 8 . . . . 3 . . 2 . 5 Utility 122 | 1 1 1 . . 5 18 6 3 2 5 24 2 . 1 2 11 1 2 8 1 28 Device 70 | 1 . 1 . . . 11 5 2 2 2 16 2 . 1 2 4 1 1 3 1 15 Storage 5 | . 1 . . . 1 1 . . . . . . . . . . . . . . 2 Processor 16 | . . . . . 1 4 . 1 . . 3 . . . . 2 . . 1 . 4 Hackware 5 | . . . . . 1 1 . . . . . . . . . . . . 1 . 2 Protection 26 | . . . . . 2 1 1 . . 3 5 . . . . 5 . 1 3 . 5 Artifact . | . . . . . . . . . . . . . . . . . . . . . . Weapon 84 | . 5 2 1 2 24 10 3 1 1 . 4 1 4 3 1 2 . 3 5 . 12 Energy Gun 5 | . 2 . . . 3 . . . . . . . . . . . . . . . . Energy Cannon 10 | . . . . . . . . . . . . . . . . 1 . 2 1 . 6 Ballistic Gun 17 | . 3 1 . 2 11 . . . . . . . . . . . . . . . . Ballistic Cannon 4 | . . . . . 4 . . . . . . . . . . . . . . . . Launcher 7 | . . . . . 1 2 . . . . . 1 . . . . . 1 1 . 1 Special Weapon 13 | . . 1 1 . 2 . 1 . . . 1 . 3 1 . 1 . . 1 . 1 Impact Weapon 5 | . . . . . 3 2 . . . . . . . . . . . . . . . Slashing Weapon 14 | . . . . . . 5 1 1 1 . 3 . . 2 . . . . . . 1 Piercing Weapon 9 | . . . . . . 1 1 . . . . . 1 . 1 . . . 2 . 3 Special Melee Weapon . | . . . . . . . . . . . . . . . . . . . . . . Unidentified Prototypes 18 | . . . . . 3 . 1 . 1 . 3 . 1 . . . . . 6 . 3 Corrupted Parts 2 | . . . . . 1 . . . . . . . . . . . . . . 1 . System Corruption 12 | . . . . . 1 . . . . . . . . . . . . . . 11 . Parts Lost 15 | . . . . . 2 . . . . . . . . . . . . . 1 . 12 Power 1 | . . . . . . . . . . . . . . . . . . . . . 1 Propulsion 7 | . . . . . 1 . . . . . . . . . . . . . . . 6 Utility 3 | . . . . . . . . . . . . . . . . . . . . . 3 Weapon 4 | . . . . . 1 . . . . . . . . . . . . . 1 . 2 Highest Loss Streak 5 | . . . . . 1 . . . . . . . . . . . . . 1 . 5 To Critical Strikes . | . . . . . . . . . . . . . . . . . . . . . . Average Slot Usage (%) 95 | . 99 100 85 100 99 95 99 100 100 100 96 93 96 100 100 98 100 94 98 100 82 Engine 5 | . 14 14 14 14 9 1 4 7 7 7 2 . . . . . . . . . . Core 4 | . . . . . . 5 7 7 7 7 10 12 12 12 12 11 11 11 9 . 3 Reactor 1 | . . . . . . . . . . . . . . . . . . . 1 11 4 Treads 1 | . 23 . . . . . . . . . . . . . . . . . . . . Wheel 11 | . 4 28 28 28 35 . . . . . . . . . . . . . . . 4 Flight 17 | . . . . . . 29 28 28 28 28 30 31 31 31 31 32 33 33 33 33 20 Device 14 | . 14 14 14 14 9 19 21 20 21 17 15 12 12 12 12 13 14 16 9 11 13 Storage 7 | . 14 14 14 14 9 7 7 7 7 7 6 6 6 6 6 5 5 5 5 5 4 Processor 9 | . . . . . 6 3 14 14 14 14 14 18 18 18 18 19 16 16 16 16 13 Hackware 2 | . . . . . 1 7 . . . . . . . . . . . . 4 5 8 Protection 4 | . . . . . 8 3 . . . 3 5 6 6 6 6 4 7 5 7 5 3 Energy Gun 1 | . 18 . . . . . . . . . . . . . . . . . 1 5 . Ballistic Gun 4 | . 8 24 . 28 8 . . . . . . . . . . . . . . . . Ballistic Cannon 1 | . . . . . 5 . . . . . . . . . . . . . . . . Special Weapon 1 | . . 3 14 . . . . . . . 1 . 3 5 6 4 5 . 2 . . Slashing Weapon 1 | . . . . . . 5 6 7 7 7 2 . . 4 . . . . . . . Piercing Weapon 3 | . . . . . . 1 6 7 7 7 6 6 5 3 6 5 5 . 4 5 4 Naked Turns 16 | . . . . . . . . . . . . . . . . . . . . . 16 Heaviest Build 107 | 15 32 32 27 32 107 29 33 27 27 29 34 34 34 36 35 44 38 38 40 43 56 Greatest Support 66 | 40 40 24 24 24 62 29 29 29 29 29 34 44 34 44 44 49 49 47 50 41 66 Greatest Overweight (x) 9 | . 2 1 1 1 9 . 1 . . 2 . . . 1 . 1 . . 2 1 2 Average Overweight (x) . | . . 1 1 1 1 . . . . . . . . . . . . . . . . Largest Inventory Capacity 25 | 8 15 15 15 15 25 25 10 10 10 10 10 10 10 10 10 10 10 10 10 10 15 Average Capacity 13 | 8 13 15 15 15 21 10 10 10 10 10 10 10 10 10 10 10 10 10 10 10 12 Most Carried 23 | 6 14 15 15 14 23 23 10 10 10 10 10 10 10 10 10 10 9 10 10 10 15 Average Carried 12 | 6 7 14 14 13 18 9 9 9 9 10 9 9 9 10 10 9 9 9 9 10 12 Final Capacity 25 | 8 15 15 15 15 25 10 10 10 10 10 10 10 10 10 10 10 10 10 10 10 5 Final Carried 23 | 6 14 15 15 14 23 10 9 10 10 10 10 10 10 10 10 9 9 10 10 10 4 Class Distribution -------------------- 34% | Sprinter 22% | Mutant 13% | Hacker-Sprinter 13% | Skirmisher 3% | Infiltrator-Sprinter 3% | Assassin 3% | Hacker-Mutant Dominant Class ---------------- Mutant | -10/Materials Mutant | -10/Mines Mutant | -10/Exiles Mutant | -9/Mines Skirmisher | -8/Materials Sprinter | -7/Factory Sprinter | -7/Lower Caves Sprinter | -7/Lower Caves Sprinter | -7/Zion Sprinter | -6/Proximity Caves Sprinter | -6/Factory Sprinter | -6/Lower Caves Sprinter | -6/Lower Caves Sprinter | -6/Data Miner Sprinter | -5/Proximity Caves Sprinter | -5/Factory Sprinter | -5/Upper Caves Sprinter | -5/Upper Caves Commander-Sprinter | -5/Warlord Hacker-Sprinter | -4/Proximity Caves Hacker-Sprinter | -4/Factory Resources | -11 -10 -10 -10 -9 -8 -7 -7 -7 -7 -6 -6 -6 -6 -6 -5 -5 -5 -5 -5 -4 -4 ----------- Run | Yrd Mat Min Exi Min Mat Fac Low Low Zio Pro Fac Low Low Dat Pro Fac Upp Upp War Pro Fac Matter Collected 4414 | 230 40 181 . 16 906 405 243 106 . 70 390 40 67 . . 294 24 10 260 10 1122 Remotely . | . . . . . . . . . . . . . . . . . . . . . . Salvage Created 5722 | 39 361 8 . . 1030 469 108 387 . 39 825 229 51 . . 228 310 . . . 1638 Parts 264 | 6 20 . . . 66 16 10 15 . 4 39 5 2 . . 13 2 . . . 66 Haulers Intercepted 10 | . 1 . . . 3 1 . . . . 1 . . . . . . . . . 4 Recyclers Shooed 4 | . 1 . . . 1 . . . . . . . . . . . . . . . 2 Parts Field Recycled . | . . . . . . . . . . . . . . . . . . . . . . Retrieved Matter . | . . . . . . . . . . . . . . . . . . . . . . Parts Self-Destructed 43 | . . . . . . . 3 11 . 23 . 4 . . . . . . . 2 . Prevented 5 | . . . . . . . . 5 . . . . . . . . . . . . . Kills | -11 -10 -10 -10 -9 -8 -7 -7 -7 -7 -6 -6 -6 -6 -6 -5 -5 -5 -5 -5 -4 -4 ------- Run | Yrd Mat Min Exi Min Mat Fac Low Low Zio Pro Fac Low Low Dat Pro Fac Upp Upp War Pro Fac Combat Hostiles Destroyed 46 | . 8 2 . . 23 2 . . . 1 2 3 . . . . . . . . 5 Melee 10 | . . . . . . 2 . . . 1 2 . . . . . . . . . 5 Guns 19 | . 8 2 . . 9 . . . . . . . . . . . . . . . . Cannons 9 | . . . . . 9 . . . . . . . . . . . . . . . . AOE 8 | . . . . . 5 . . . . . . 3 . . . . . . . . . Classes Destroyed 19 | 1 5 1 . . 4 2 1 2 . 1 . . . . . . . . . . 2 Worker 3 | . . . . . . . . . . . . . . . . . . . . . 3 Builder 8 | . . . . . 3 . . . . . 2 . . . . . . . . . 3 Tunneler 6 | 2 . . . . 1 1 . . . . 1 . . . . . . . . . 1 Hauler 10 | . 1 . . . 3 1 . . . . 1 . . . . . . . . . 4 Recycler 13 | . 1 . . . . 2 . . . . 4 . . . . 1 . . . . 5 Minesweeper 3 | . . . . . . . . 1 . 1 . 1 . . . . . . . . . Mechanic 2 | . . . . . 1 . . . . . . . . . . 1 . . . . . Operator 5 | . . . . . . 1 1 . . . 2 . . . . . . . . . 1 Drone 1 | . . . . . . . . . . 1 . . . . . . . . . . . Watcher 16 | . 1 . . . 4 4 . . . . 2 . . . . 2 . . . . 3 Swarmer 16 | . 6 . . . 7 . . . . . . 3 . . . . . . . . . Grunt 14 | . 2 . . . 11 . . . . . 1 . . . . . . . . . . Sentry 5 | . . . . . 4 1 . . . . . . . . . . . . . . . Specialist 1 | . . . . . . . . . . . . . . . . . . . . . 1 Hunter 1 | . . . . . 1 . . . . . . . . . . . . . . . . Programmer 7 | . . . . . . 1 . . . . 1 . . . . . . . . . 5 Packrat 8 | . . . . . . . . 2 . . . 3 . . . . 3 . . . . Samaritan 5 | . . . . . . . 2 . . . . . 1 . . . 2 . . . . Assembled 2 | . . 2 . . . . . . . . . . . . . . . . . . . Butcher 2 | . . . . . . . . 2 . . . . . . . . . . . . . Commander 1 | . . . . . . . . 1 . . . . . . . . . . . . . Best Kill Streak 6 | 1 4 1 . . 6 5 . 1 . 1 4 3 . . . 2 . . . . 3 Combat Bots Only 5 | . 3 1 . . 5 2 . . . 1 2 3 . . . . . . . . 2 Max Kills in Single Turn 2 | 1 1 1 . . 2 1 1 1 . 1 1 1 1 . . 1 1 . . . 1 Gunslinging . | . . . . . . . . . . . . . . . . . . . . . . Exploded 2 | . . . . . 2 . . . . . . 1 . . . . . . . . . Melee 1 | . . . . . . 1 . . . 1 1 . . . . . . . . . 1 Uniques/NPCs Destroyed . | . . . . . . . . . . . . . . . . . . . . . . Combat | -11 -10 -10 -10 -9 -8 -7 -7 -7 -7 -6 -6 -6 -6 -6 -5 -5 -5 -5 -5 -4 -4 -------- Run | Yrd Mat Min Exi Min Mat Fac Low Low Zio Pro Fac Low Low Dat Pro Fac Upp Upp War Pro Fac Hostile Shots Fired 392 | . 60 5 . . 92 22 . . . 2 4 11 . . 4 3 5 3 7 . 174 Missed 132 | . 11 1 . . 25 6 . . . 1 2 5 . . 4 . 1 2 6 . 68 Damage Taken 4729 | . 426 63 . 27 1133 233 40 . . 15 39 137 . . . 55 85 23 40 . 2413 Core 1563 | . 64 . . 9 150 60 14 . . . . 55 . . . . 56 . . . 1155 Absorbed by Shields . | . . . . . . . . . . . . . . . . . . . . . . Redirected to Shielding 23 | . . . . . . . . . . . . . . . . . . . . . 23 Regen/Repaired (Parts) 142 | . . . . . . . . . . . . . . . . 116 . . 26 . . Core Remaining (%) 86 | 100 . . . 70 72 . . . . 89 . . . . 93 . . . . 94 . Volleys Fired 167 | 8 30 8 . 1 85 2 1 . . . . 5 . . . 1 . 6 2 . 18 Largest 2 | 2 2 2 . 2 2 1 1 . . . . 1 . . . 1 . 1 1 . 1 Hottest 100 | 100 100 100 . 46 100 36 . . . . . 43 . . . 90 . 90 90 . 90 Shots Fired 271 | 16 55 14 . 2 149 2 1 . . . . 5 . . . 1 . 6 2 . 18 Gun 180 | 16 55 11 . 2 96 . . . . . . . . . . . . . . . . Cannon 68 | . . . . . 43 . . . . . . . . . . 1 . 6 2 . 16 Launcher 12 | . . . . . 5 2 . . . . . 5 . . . . . . . . . Special 11 | . . 3 . . 5 . 1 . . . . . . . . . . . . . 2 Kinetic 140 | . 2 11 . 2 125 . . . . . . . . . . . . . . . . Thermal 106 | 16 53 3 . . 9 . . . . . . . . . . 1 . 6 2 . 16 Explosive 12 | . . . . . 5 2 . . . . . 5 . . . . . . . . . Electromagnetic 10 | . . . . . 10 . . . . . . . . . . . . . . . . Robot Hit Streak 10 | 4 8 2 . . 9 . 9 . . . . 10 . . . . . . . . 2 Robot Miss Streak 5 | 3 3 4 . . 5 . . . . . . 1 . . . . . . . . . Penetration Max . | . . . . . . . . . . . . . . . . . . . . . . Secondary Targets 1 | . . . . . 1 . . . . . . . . . . . . . . . . Max Gunslinging Chain 1 | . . . . . 1 . . . . . . . . . . . . . . . . Shots Hit Robots 296 | 10 33 3 . . 98 26 6 10 . 5 25 5 2 1 . 4 7 . 2 . 59 Core Hits 144 | 2 17 3 . . 59 5 1 6 . 2 15 5 1 . . 4 3 . . . 21 Critical Kills 1 | . . . . . . 1 . . . . . . . . . . . . . . . Critical Parts Destroyed 3 | . . . . . 1 2 . . . . . . . . . . . . . . . Critical Strikes 20 | . 2 . . . 1 4 1 1 . . 1 1 . . . . 2 . . . 7 Burn 2 | . 2 . . . . . . . . . . . . . . . . . . . . Smash 4 | . . . . . 1 3 . . . . . . . . . . . . . . . Sever 1 | . . . . . . 1 . . . . . . . . . . . . . . . Impale 13 | . . . . . . . 1 1 . . 1 1 . . . . 2 . . . 7 Melee Attacks 346 | . . . . . 14 58 14 22 1 16 61 5 2 5 . 13 7 2 3 . 123 Impact 32 | . . . . . 14 18 . . . . . . . . . . . . . . . Slashing 55 | . . . . . . 29 4 5 . 5 6 . . 4 . . . . . . 2 Piercing 259 | . . . . . . 11 10 17 1 11 55 5 2 1 . 13 7 2 3 . 121 Sneak Attacks 81 | . . . . . 2 10 5 10 . 2 13 4 2 1 . 3 7 . . . 22 Combat Hostiles 2 | . . . . . . 1 . . . . 1 . . . . . . . . . . Follow-up Attacks 15 | . . . . . . 7 1 1 . 3 3 . . . . . . . . . . Damage Inflicted 13092 | 141 453 41 . . 2810 1688 399 652 . 264 1523 788 157 81 . 323 529 . 102 . 3141 Guns 1641 | 141 453 41 . . 1006 . . . . . . . . . . . . . . . . Cannons 784 | . . . . . 784 . . . . . . . . . . . . . . . . Explosions 1135 | . . . . . 675 . . . . . . 460 . . . . . . . . . Melee 9488 | . . . . . 301 1688 399 652 . 264 1523 328 157 81 . 323 529 . 102 . 3141 Ramming 18 | . . . . . 18 . . . . . . . . . . . . . . . . Kinetic 1663 | . 15 41 . . 1607 . . . . . . . . . . . . . . . . Thermal 642 | 141 438 . . . 63 . . . . . . . . . . . . . . . . Explosive 1135 | . . . . . 675 . . . . . . 460 . . . . . . . . . Electromagnetic 146 | . . . . . 146 . . . . . . . . . . . . . . . . Impact 1048 | . . . . . 301 747 . . . . . . . . . . . . . . . Slashing 1394 | . . . . . . 941 82 57 . 155 159 . . . . . . . . . . Piercing 7046 | . . . . . . . 317 595 . 109 1364 328 157 81 . 323 529 . 102 . 3141 Highest Corruption 24 | . 2 2 2 2 1 3 3 3 3 . 1 . . . . . . . . 11 24 Average Corruption 4 | . 2 2 2 2 1 2 3 3 3 . 1 . . . . . . . . 11 10 Corruption Purged 1 | . . . . . . . . . . . 1 . . . . . . . . . . Corruption Blocked . | . . . . . . . . . . . . . . . . . . . . . . Effects 119 | . 7 9 4 2 . 10 5 8 1 . 6 . . . . . . . . . 67 Message Errors 26 | . . 2 1 1 . 3 3 1 . . 3 . . . . . . . . . 12 Matter Fused 29 | . 3 4 . . . 1 1 4 . . . . . . . . . . . . 16 Heat Flow Errors 16 | . 1 . 2 . . 3 . 2 . . . . . . . . . . . . 8 Energy Discharges 13 | . 2 1 . . . . . 1 . . . . . . . . . . . . 9 Parts Rejected 2 | . . . . . . . . . . . . . . . . . . . . . 2 Parts Fused 2 | . . . . . . 1 . . 1 . . . . . . . . . . . . Data Loss (minor) 13 | . . 1 1 . . 2 . . . . 2 . . . . . . . . . 7 Data Loss (major) 7 | . 1 . . 1 . . 1 . . . 1 . . . . . . . . . 3 Misfires 1 | . . 1 . . . . . . . . . . . . . . . . . . . Alerts 1 | . . . . . . . . . . . . . . . . . . . . . 1 Misdirections 9 | . . . . . . . . . . . . . . . . . . . . . 9 Overload Shots . | . . . . . . . . . . . . . . . . . . . . . . Overflow Damage 2592 | . . . . . 245 680 292 51 . 86 194 232 60 21 . . 274 . 23 . 434 Projectiles 19 | . . . . . 19 . . . . . . . . . . . . . . . . Explosions 22 | . . . . . . . . . . . . 22 . . . . . . . . . Melee 2551 | . . . . . 226 680 292 51 . 86 194 210 60 21 . . 274 . 23 . 434 Knockbacks 3 | . . . . . . 3 . . . . . . . . . . . . . . . Impact 3 | . . . . . . 3 . . . . . . . . . . . . . . . Kinetic . | . . . . . . . . . . . . . . . . . . . . . . Secondary . | . . . . . . . . . . . . . . . . . . . . . . Self-Inflicted Damage 52 | . . . . . 9 . . . . . . 43 . . . . . . . . . Shots 1 | . . . . . . . . . . . . 1 . . . . . . . . . Rammed 2 | . . . . . 2 . . . . . . . . . . . . . . . . Targets Rammed 2 | . . . . . 2 . . . . . . . . . . . . . . . . Kicked . | . . . . . . . . . . . . . . . . . . . . . . Crushed . | . . . . . . . . . . . . . . . . . . . . . . Highest Temperature 410 | 156 410 20 167 6 303 271 284 105 3 13 92 265 173 199 272 70 253 14 120 98 307 Average Temperature 70 | 79 191 9 76 4 85 108 127 57 3 4 23 82 62 41 118 49 84 7 39 23 77 Received Heat Transfer 660 | . 75 . . . 414 . . . . . 18 . . . . 45 9 . . . 99 Effects 7 | . 4 . . . . . 1 . . . . 1 . . . . . . . . 1 Shutdowns 2 | . 2 . . . . . . . . . . . . . . . . . . . . Energy Bleed 4 | . 1 . . . . . 1 . . . . 1 . . . . . . . . 1 Interference 1 | . 1 . . . . . . . . . . . . . . . . . . . . Siege Activations . | . . . . . . . . . . . . . . . . . . . . . . Robots Corrupted . | . . . . . . . . . . . . . . . . . . . . . . Combat Hostiles . | . . . . . . . . . . . . . . . . . . . . . . Parts Fried 4 | . . . . . . 3 1 . . . . . . . . . . . . . . Impact Corruptions 21 | . . . . . 6 15 . . . . . . . . . . . . . . . Robots Melted . | . . . . . . . . . . . . . . . . . . . . . . Combat Hostiles . | . . . . . . . . . . . . . . . . . . . . . . Parts Melted 6 | . 4 . . . 1 . . . . . . . . . . . . . . . 1 Heat Transferred 2084 | 407 1443 . . . 234 . . . . . . . . . . . . . . . . Parts Sabotaged . | . . . . . . . . . . . . . . . . . . . . . . Parts Stolen . | . . . . . . . . . . . . . . . . . . . . . . Parts Stripped . | . . . . . . . . . . . . . . . . . . . . . . Power Chain Reactions . | . . . . . . . . . . . . . . . . . . . . . . Alert | -11 -10 -10 -10 -9 -8 -7 -7 -7 -7 -6 -6 -6 -6 -6 -5 -5 -5 -5 -5 -4 -4 ------- Run | Yrd Mat Min Exi Min Mat Fac Low Low Zio Pro Fac Low Low Dat Pro Fac Upp Upp War Pro Fac Peak Influence 811 | 10 244 34 . . 429 383 . . . . 352 . . . . 98 . . . . 811 Initial 259 | . 6 32 . . . 179 . . . . 259 . . . . 37 . . . . 21 Average 213 | 4 97 19 . . 214 252 . . . . 259 . . . . 59 . . . . 335 Maximum Alert Level 3 | . 1 . . . 2 1 . . . . 1 . . . . . . . . . 3 Low Security (%) 49 | 100 98 100 . 100 51 24 . . . . 20 . . . . 100 . . . . 20 Level 1 39 | . 1 . . . 32 75 . . . . 79 . . . . . . . . . 50 Level 2 10 | . . . . . 16 . . . . . . . . . . . . . . . 24 Level 3 . | . . . . . . . . . . . . . . . . . . . . . 4 Level 4 . | . . . . . . . . . . . . . . . . . . . . . . Level 5 . | . . . . . . . . . . . . . . . . . . . . . . High Security . | . . . . . . . . . . . . . . . . . . . . . . Max Security . | . . . . . . . . . . . . . . . . . . . . . . Squads Dispatched 24 | . 2 . . . 4 3 . . . . 7 . . . . . . . . . 8 Investigation 7 | . 1 . . . 2 1 . . . . 3 . . . . . . . . . . Extermination 8 | . . . . . . 2 . . . . 2 . . . . . . . . . 4 Reinforcement 7 | . 1 . . . 2 . . . . . 1 . . . . . . . . . 3 Assault 2 | . . . . . . . . . . . 1 . . . . . . . . . 1 Garrison . | . . . . . . . . . . . . . . . . . . . . . . Intercept . | . . . . . . . . . . . . . . . . . . . . . . Searches Triggered . | . . . . . . . . . . . . . . . . . . . . . . Construction Impeded . | . . . . . . . . . . . . . . . . . . . . . . Haulers Reinforced 2 | . . . . . . . . . . . 1 . . . . . . . . . 1 Active Scanning Responses . | . . . . . . . . . . . . . . . . . . . . . . Cargo Convoy Interrupts 1 | . . . . . . . . . . . . . . . . . . . . . 1 Stealth | -11 -10 -10 -10 -9 -8 -7 -7 -7 -7 -6 -6 -6 -6 -6 -5 -5 -5 -5 -5 -4 -4 --------- Run | Yrd Mat Min Exi Min Mat Fac Low Low Zio Pro Fac Low Low Dat Pro Fac Upp Upp War Pro Fac Distress Signals 5 | . 1 . . . 3 . . . . . . . . . . . . . . . 1 Communications Jammed 11 | . . . . . . . . . . . 8 . . . . . . . . . 3 Distress Signals 10 | . . . . . . . . . . . 8 . . . . . . . . . 2 Times Spotted 213 | . 17 2 . . 35 6 . 2 . 15 11 8 . 4 8 4 9 1 37 . 54 Peak Tracking Total 11 | . 6 1 . . 6 2 . 1 . 6 2 3 . 4 4 3 11 1 7 . 9 Tactical Retreats 19 | . . . . . 3 1 . 1 . . . 1 . . 1 . 3 1 1 . 7 Traps | -11 -10 -10 -10 -9 -8 -7 -7 -7 -7 -6 -6 -6 -6 -6 -5 -5 -5 -5 -5 -4 -4 ------- Run | Yrd Mat Min Exi Min Mat Fac Low Low Zio Pro Fac Low Low Dat Pro Fac Upp Upp War Pro Fac Traps Triggered 13 | . 2 . . . 2 3 1 . . . . . . . . 3 . . . . 2 Indirectly . | . . . . . . . . . . . . . . . . . . . . . . Trap Hack Attempts . | . . . . . . . . . . . . . . . . . . . . . . Triggered . | . . . . . . . . . . . . . . . . . . . . . . Disarmed . | . . . . . . . . . . . . . . . . . . . . . . Reprogrammed . | . . . . . . . . . . . . . . . . . . . . . . Reused . | . . . . . . . . . . . . . . . . . . . . . . Traps Extracted . | . . . . . . . . . . . . . . . . . . . . . . Installed . | . . . . . . . . . . . . . . . . . . . . . . Triggered 17 | . . . . . . . . 2 . . . . . . . . . . 15 . . Machines | -11 -10 -10 -10 -9 -8 -7 -7 -7 -7 -6 -6 -6 -6 -6 -5 -5 -5 -5 -5 -4 -4 ---------- Run | Yrd Mat Min Exi Min Mat Fac Low Low Zio Pro Fac Low Low Dat Pro Fac Upp Upp War Pro Fac Machines Disabled 10 | . . . . . . 4 . . . . 2 . . 1 . . . . . . 3 Max in Single Turn 1 | . . . . . . 1 . . . . 1 . . 1 . . . . . . . Garrison Access 5 | . . . . . 1 1 . . . . 1 . . . . . . . . . 2 Machines Repaired . | . . . . . . . . . . . . . . . . . . . . . . Machines Dismantled 2 | . . . . . . . . . . . 1 . 1 . . . . . . . . Machines Sabotaged . | . . . . . . . . . . . . . . . . . . . . . . Overloaded Fab Kills . | . . . . . . . . . . . . . . . . . . . . . . Hacking | -11 -10 -10 -10 -9 -8 -7 -7 -7 -7 -6 -6 -6 -6 -6 -5 -5 -5 -5 -5 -4 -4 --------- Run | Yrd Mat Min Exi Min Mat Fac Low Low Zio Pro Fac Low Low Dat Pro Fac Upp Upp War Pro Fac Machines Accessed 78 | . 8 . 1 1 13 16 . 1 . . 17 . . 4 . 2 . . 1 . 14 Terminals 39 | . 5 . . . 10 8 . . . . 8 . . . . . . . . . 8 Fabricators 9 | . . . . . . 2 . . . . 4 . . . . 1 . . . . 2 Repair Stations 7 | . 1 . . . 1 2 . . . . 1 . . . . 1 . . . . 1 Recycling Units 7 | . 2 . . . 1 1 . . . . 2 . . . . . . . . . 1 Scanalyzers 2 | . . . . . . 1 . . . . 1 . . . . . . . . . . Garrison Access 6 | . . . . . 1 2 . . . . 1 . . . . . . . . . 2 Total Hacks 193 | . 18 . 1 1 34 29 . 10 . . 35 . . 27 . 7 . . 1 . 30 Successful 118 | . 7 . 1 1 13 13 . 10 . . 19 . . 27 . 4 . . 1 . 22 Failed 75 | . 11 . . . 21 16 . . . . 16 . . . . 3 . . . . 8 Catastrophic 15 | . 1 . . . 1 7 . . . . 3 . . . . 1 . . . . 2 Database Lockouts . | . . . . . . . . . . . . . . . . . . . . . . Manual 91 | . 13 . 1 . 21 21 . . . . 17 . 1 . . . . . 1 . 16 Terminals 91 | . 12 . . . 29 13 . . . . 19 . . . . . . . . . 18 Fabricators 19 | . . . . . . 6 . . . . 7 . . . . 1 . . . . 5 Repair Stations 16 | . 2 . . . 2 3 . . . . 1 . . . . 6 . . . . 2 Recycling Units 13 | . 4 . . . 2 2 . . . . 3 . . . . . . . . . 2 Scanalyzers 7 | . . . . . . 3 . . . . 4 . . . . . . . . . . Garrison Access 7 | . . . . . 1 2 . . . . 1 . . . . . . . . . 3 Terminal Hacks 63 | . 4 . 1 1 5 2 . 10 . . 5 . . 27 . . . . 1 . 7 Record 21 | . . . . . . . . 10 . . . . . 11 . . . . . . . Part Schematic 10 | . . . . . . . . . . . . . . 10 . . . . . . . Robot Schematic 3 | . . . . . . . . . . . . . . 3 . . . . . . . Robot Analysis 1 | . 1 . . . . . . . . . . . . . . . . . . . . Prototype ID Bank 5 | . 1 . . . . . . . . . 1 . . 3 . . . . . . . Open Door 2 | . . . . 1 . . . . . . . . . . . . . . 1 . . Level Access Points 2 | . . . . . 1 . . . . . 1 . . . . . . . . . . Branch Access Points 2 | . . . . . . 1 . . . . 1 . . . . . . . . . . Emergency Access Points 1 | . . . . . . . . . . . . . . . . . . . . . 1 Machine Index 1 | . . . . . . . . . . . . . . . . . . . . . 1 Terminal Index 3 | . 1 . . . 1 . . . . . . . . . . . . . . . 1 Locate Traps 3 | . 1 . . . 2 . . . . . . . . . . . . . . . . Dispatch Records 1 | . . . . . . . . . . . . . . . . . . . . . 1 Recall Reinforcements 1 | . . . . . . . . . . . . . . . . . . . . . 1 Hauler Manifests 5 | . . . . . 1 1 . . . . 2 . . . . . . . . . 1 Registered Components 1 | . . . . . . . . . . . . . . . . . . . . . 1 Derelict Proto ID Bank 1 | . . . 1 . . . . . . . . . . . . . . . . . . Fabricator Hacks 5 | . . . . . . . . . . . 3 . . . . . . . . . 2 Network Status 2 | . . . . . . . . . . . 1 . . . . . . . . . 1 Load Schematic 1 | . . . . . . . . . . . 1 . . . . . . . . . . Build 2 | . . . . . . . . . . . 1 . . . . . . . . . 1 Repair Station Hacks 5 | . . . . . . . . . . . . . . . . 4 . . . . 1 Scan Component 2 | . . . . . . . . . . . . . . . . 2 . . . . . Repair 2 | . . . . . . . . . . . . . . . . 2 . . . . . Refit 1 | . . . . . . . . . . . . . . . . . . . . . 1 Recycling Unit Hacks 1 | . . . . . . . . . . . . . . . . . . . . . 1 Retrieve Components 1 | . . . . . . . . . . . . . . . . . . . . . 1 Scanalyzer 6 | . . . . . . 2 . . . . 4 . . . . . . . . . . Insert Component 3 | . . . . . . 1 . . . . 2 . . . . . . . . . . Analyze 3 | . . . . . . 1 . . . . 2 . . . . . . . . . . Garrison Access Hacks 4 | . . . . . 1 1 . . . . . . . . . . . . . . 2 Seal Access 4 | . . . . . 1 1 . . . . . . . . . . . . . . 2 Unauthorized Hacks 34 | . 3 . . . 7 8 . . . . 7 . . . . . . . . . 9 Terminals 13 | . 1 . . . 4 2 . . . . 2 . . . . . . . . . 4 Assimilate 4 | . . . . . . 1 . . . . 2 . . . . . . . . . 1 Botnet 4 | . . . . . 2 . . . . . . . . . . . . . . . 2 Operators 5 | . 1 . . . 2 1 . . . . . . . . . . . . . . 1 Fabricators 7 | . . . . . . 2 . . . . 2 . . . . . . . . . 3 Prioritize 1 | . . . . . . . . . . . . . . . . . . . . . 1 Liberate 3 | . . . . . . . . . . . 1 . . . . . . . . . 2 Fabnet 1 | . . . . . . 1 . . . . . . . . . . . . . . . Haulers 2 | . . . . . . 1 . . . . 1 . . . . . . . . . . Repair Stations 6 | . 1 . . . 1 2 . . . . 1 . . . . . . . . . 1 Mechanics 6 | . 1 . . . 1 2 . . . . 1 . . . . . . . . . 1 Recycling Units 8 | . 1 . . . 2 2 . . . . 2 . . . . . . . . . 1 Reject 3 | . . . . . 1 1 . . . . 1 . . . . . . . . . . Recyclers 5 | . 1 . . . 1 1 . . . . 1 . . . . . . . . . 1 Scanalyzers . | . . . . . . . . . . . . . . . . . . . . . . Garrison Access . | . . . . . . . . . . . . . . . . . . . . . . Data Cores Recovered 1 | . . . . . . . . . . . . . . . . . . . . . 1 Used 1 | . . . . . . . . . . . . . . . . . . . . . 1 Hacking Detections 53 | . 6 . . . 9 12 . . . . 12 . . . . 2 . . . . 12 Full Trace Events 5 | . . . . . 1 1 . . . . 3 . . . . . . . . . . Feedback Events 1 | . . . . . . . . . . . 1 . . . . . . . . . . Corruption 1 | . . . . . . . . . . . 1 . . . . . . . . . . Feedback Blocked . | . . . . . . . . . . . . . . . . . . . . . . Robot Schematics Acquired 7 | . . . . . . . . . 4 . . . . 3 . . . . . . . Robots Built 2 | . . . . . . . . . . . . . . . . . . . . . 2 Authchips . | . . . . . . . . . . . . . . . . . . . . . . Time 93 | . . . . . . . . . . . . . . . . . . . . . 93 Total Robot Build Rating 14 | . . . . . . . . . . . . . . . . . . . . . 14 Part Schematics Acquired 26 | . . . . . . 1 . . 13 . 2 . . 10 . . . . . . . Parts Built 1 | . . . . . . . . . . . 1 . . . . . . . . . . Authchips . | . . . . . . . . . . . . . . . . . . . . . . Time 47 | . . . . . . . . . . . 47 . . . . . . . . . . Total Part Build Rating 5 | . . . . . . . . . . . 5 . . . . . . . . . . Parts Repaired 2 | . . . . . . . . . . . . . . . . 2 . . . . . Time 120 | . . . . . . . . . . . . . . . . 120 . . . . . Parts Recycled . | . . . . . . . . . . . . . . . . . . . . . . Recycled Matter . | . . . . . . . . . . . . . . . . . . . . . . Retrieved Matter . | . . . . . . . . . . . . . . . . . . . . . . Retrieved Components 3 | . . . . . . . . . . . . . . . . . . . . . 3 Parts Scanalyzed 3 | . . . . . . 1 . . . . 2 . . . . . . . . . . Part Schematics Acquired 3 | . . . . . . 1 . . . . 2 . . . . . . . . . . Parts Damaged 1 | . . . . . . . . . . . 1 . . . . . . . . . . Bothacking | -11 -10 -10 -10 -9 -8 -7 -7 -7 -7 -6 -6 -6 -6 -6 -5 -5 -5 -5 -5 -4 -4 ------------ Run | Yrd Mat Min Exi Min Mat Fac Low Low Zio Pro Fac Low Low Dat Pro Fac Upp Upp War Pro Fac Used RIF Installer . | . . . . . . . . . . . . . . . . . . . . . . Robots Hacked 1 | . . . . . . . . . . 1 . . . . . . . . . . . Non-combat . | . . . . . . . . . . . . . . . . . . . . . . Combat 1 | . . . . . . . . . . 1 . . . . . . . . . . . Robot Hacks Applied . | . . . . . . . . . . . . . . . . . . . . . . Relay Couplers Released 3 | . . . . . . . . . . . 3 . . . . . . . . . . Machine Destruction 3 | . . . . . . . . . . . 3 . . . . . . . . . . Fabnet Peak Effective % 3 | . . . . . . . . . . 3 3 3 3 3 1 1 1 1 1 . . Autooverrided 1 | . . . . . . . . . . 1 . . . . . . . . . . . Robots Rewired 5 | . . . . . . . . . . . . . . . . . . . 5 . . Allies Hacked . | . . . . . . . . . . . . . . . . . . . . . . Hacks Repelled . | . . . . . . . . . . . . . . . . . . . . . . Allies | -11 -10 -10 -10 -9 -8 -7 -7 -7 -7 -6 -6 -6 -6 -6 -5 -5 -5 -5 -5 -4 -4 -------- Run | Yrd Mat Min Exi Min Mat Fac Low Low Zio Pro Fac Low Low Dat Pro Fac Upp Upp War Pro Fac Total Allies 26 | . . . . . . 1 1 . 6 1 3 . . . . . . . 5 . 9 Largest Group 7 | . . . . . . 1 1 1 7 7 3 2 . . . . . . 5 2 4 Highest-Rated Group 269 | . . . . . . 26 85 85 247 247 122 36 . . . . . . 269 133 224 Highest-Rated Ally 85 | . . . . . . 26 85 85 85 85 85 26 . . . . . . 68 68 68 Total Orders 23 | . . . . . . . . 1 . . 8 . . . . 2 . . 10 1 1 STAY 9 | . . . . . . . . . . . 2 . . . . . . . 6 . 1 FOLLOW 3 | . . . . . . . . . . . 2 . . . . . . . 1 . . GUARD 2 | . . . . . . . . 1 . . . . . . . . . . 1 . . AID 3 | . . . . . . . . . . . . . . . . . . . 2 1 . RETURN 6 | . . . . . . . . . . . 4 . . . . 2 . . . . . Ally Attacks 205 | . . . . . . . 2 7 . 75 12 . . . . . . . 37 3 69 Total Damage 6845 | . . . . . . . 69 346 . 1506 513 . . . . . . . 1747 313 2351 Kills 45 | . . . . . . . 1 3 . 16 1 . . . . . . . 4 1 19 Allies Corrupted 1 | . . . . . . . . . . . . . . . . . . . 1 . . Allies Melted . | . . . . . . . . . . . . . . . . . . . . . . Field Lobotomies 3 | . . . . . . . 1 . . . . . . . . . . . . . 2 Intel | -11 -10 -10 -10 -9 -8 -7 -7 -7 -7 -6 -6 -6 -6 -6 -5 -5 -5 -5 -5 -4 -4 ------- Run | Yrd Mat Min Exi Min Mat Fac Low Low Zio Pro Fac Low Low Dat Pro Fac Upp Upp War Pro Fac Robot Analysis Total 1 | . 1 . . . . . . . . . . . . . . . . . . . . Derelict Logs Recovered 15 | . . 2 . 1 . . 3 . 1 1 . 1 1 . 1 . 1 3 . . . Drone Launches 6 | . . . . . . . . . . . 4 . . . . 2 . . . . . Drone Recoveries 6 | . . . . . . . . . . . 4 . . . . 2 . . . . . Exploration | -11 -10 -10 -10 -9 -8 -7 -7 -7 -7 -6 -6 -6 -6 -6 -5 -5 -5 -5 -5 -4 -4 ------------- Run | Yrd Mat Min Exi Min Mat Fac Low Low Zio Pro Fac Low Low Dat Pro Fac Upp Upp War Pro Fac Turns Passed 12955 | 81 759 683 234 210 2828 1010 439 410 633 510 989 135 135 60 88 421 98 329 567 216 2120 Spaces Moved 17292 | 30 421 508 217 169 1666 2029 616 439 1373 627 2002 388 441 111 307 716 268 410 961 258 3335 Core 50 | . . . . . . . . . . 8 . . . . . . . . 9 . 33 Treads 358 | 30 316 . . . 12 . . . . . . . . . . . . . . . . Legs . | . . . . . . . . . . . . . . . . . . . . . . Wheels 2979 | . 105 508 217 169 1654 . . . . . . . . . . . . . . . 326 Hover . | . . . . . . . . . . . . . . . . . . . . . . Flight 13905 | . . . . . . 2029 616 439 1373 619 2002 388 441 111 307 716 268 410 952 258 2976 Fastest Speed 5 | 160 105 105 105 105 90 26 26 26 26 26 23 5 23 5 5 5 5 6 6 20 6 Average Speed 41 | 160 146 105 105 105 110 26 30 26 26 28 23 21 23 25 21 20 16 19 21 20 31 Slowest Speed 480 | 160 160 105 105 105 480 29 96 26 26 150 26 23 23 88 23 89 20 20 150 85 159 Overloaded Moves 306 | . . . . . . . . . . . . 38 . 29 43 12 65 2 5 . 112 Propulsion Burnouts . | . . . . . . . . . . . . . . . . . . . . . . Robots Hopped 58 | . . . . . . 14 1 1 6 . 6 1 . . . 2 . . 2 . 25 Cave-ins Triggered 1 | . . . . . . . . . . . . . . . . . . . . . 1 Exploration Rate (%) 60 | 3 85 98 60 51 81 54 69 47 86 83 39 62 63 76 52 18 41 62 93 53 52 Regions Visited 21 Branch Regions 15 Pre-discovered Areas 5 | . . 1 . . . . . 1 . . . 1 1 1 . . . . . . . Known Exits Taken 7 | . . . . . 1 1 1 1 . . 1 . . . 1 1 . . . . . Unknown Exits Taken 14 | 1 1 1 1 1 . . . . 1 1 . 1 1 1 . . 1 1 1 1 . Scrap Searched 25 | . . 1 . 1 . . 1 2 3 4 . 4 3 . 1 . 2 1 . 2 . Spaces Dug 270 | . . 3 . . 11 57 7 8 . 7 29 49 . . . 10 . 8 3 . 78 Terrain Destroyed 356 | . . 3 . . 52 88 7 8 . 7 29 63 . . . 10 . 8 3 . 78 Melee 150 | . . . . . 8 16 7 8 . 7 29 1 . . . 9 . 2 1 . 62 Projectile 41 | . . 3 . . 13 . . . . . . . . . . 1 . 6 2 . 16 AOE 165 | . . . . . 31 72 . . . . . 62 . . . . . . . . . Terrain Rammed . | . . . . . . . . . . . . . . . . . . . . . . Walls Destroyed . | . . . . . . . . . . . . . . . . . . . . . . Machines Disabled . | . . . . . . . . . . . . . . . . . . . . . . Actions | -11 -10 -10 -10 -9 -8 -7 -7 -7 -7 -6 -6 -6 -6 -6 -5 -5 -5 -5 -5 -4 -4 --------- Run | Yrd Mat Min Exi Min Mat Fac Low Low Zio Pro Fac Low Low Dat Pro Fac Upp Upp War Pro Fac Total 22254 | 46 510 639 225 200 2484 2420 844 704 1640 938 2421 424 462 134 327 965 307 645 1313 420 4186 Wait 3916 | 6 30 119 . 25 641 251 201 239 267 296 285 24 8 15 18 192 32 222 278 161 606 Move 17165 | 29 420 507 216 168 1665 2004 613 436 1363 626 1989 385 440 110 306 711 267 409 956 257 3288 Hop 48 | . . . . . . 10 1 1 3 . 6 1 . . . 2 . . 2 . 22 Pick Up 110 | . 12 1 3 2 16 18 . 2 1 . 13 . 1 . . 8 . . 3 . 30 Fast Attach 101 | 1 4 1 . . 15 17 6 3 1 . 9 . 3 . . 7 . . 11 . 23 Attach 45 | . . . . 1 5 5 1 . . . 5 1 1 . . 2 . . 1 . 23 Detach 23 | . . . 1 . 1 2 . . . . 2 1 . . . . . 1 1 . 14 Swap 137 | 2 4 2 1 1 20 15 5 1 2 5 26 2 . 4 3 9 1 5 10 2 17 Drop 154 | . 10 1 4 2 20 31 5 4 2 . 22 . 3 . . 11 . . 17 . 22 Fire 167 | 8 30 8 . 1 85 2 1 . . . . 5 . . . 1 . 6 2 . 18 Melee 317 | . . . . . 14 47 11 18 1 11 55 5 2 5 . 13 7 2 3 . 123 Ram 2 | . . . . . 2 . . . . . . . . . . . . . . . . Kick . | . . . . . . . . . . . . . . . . . . . . . . Crush . | . . . . . . . . . . . . . . . . . . . . . . Escape Stasis 27 | . . . . . . 18 . . . . . . . . . 9 . . . . . Rewire 29 | . . . . . . . . . . . . . . . . . . . 29 . . Trap . | . . . . . . . . . . . . . . . . . . . . . . Miscellaneous 13 | . . . . . . . . . . . 9 . 4 . . . . . . . . Route ------- -11/Scrapyard -10/Materials (discovered 3 exits: [*Mat] / [*Min x2]) -10/Mines (discovered 3 exits: [*Mat x2] / *Exi) -10/Exiles -9/Mines -8/Materials (discovered 3 exits: *Fac x3) -7/Factory (discovered 4 exits: *Fac / *Sto / *Low x2) -7/Lower Caves -7/Lower Caves -7/Zion -6/Proximity Caves -6/Factory (discovered 6 exits: Fac x4 / *Low x2) -6/Lower Caves -6/Lower Caves (discovered 2 exits: *Fac / *Dat) -6/Data Miner -5/Proximity Caves -5/Factory -5/Upper Caves -5/Upper Caves -5/Warlord -4/Proximity Caves -4/Factory (discovered 6 exits: *Res x3 / Upp / Ext x2) History --------- Turn | Location | Event 4 | -11/Scrapyard | Discovered new exit (range 3) 82 | -11/Scrapyard | Entered Materials 96 | -10/Materials | Discovered new exit (range 16) 311 | -10/Materials | Build established: Mutant 363 | -10/Materials | Discovered new exit (range 6) 439 | -10/Materials | Discovered new exit (range 8) 841 | -10/Materials | Entered Mines 924 | -10/Mines | Assembled infested the area 1100 | -10/Mines | A weapon hastily lodged in a ceiling crevice suddenly fell to the ground 1119 | -10/Mines | Learned location of Storage (-7) 1172 | -10/Mines | Discovered new exit (range 15) 1387 | -10/Mines | Discovered new exit (range 12) 1481 | -10/Mines | Learned Materials stockpile data 1484 | -10/Mines | Deemed a non-threat by the Exiles lab entrance 1484 | -10/Mines | Discovered new exit (range 5) 1524 | -10/Mines | Entered Exiles 1552 | -10/Exiles | Met 8R-AWN 1570 | -10/Exiles | Met EX-HEX 1602 | -10/Exiles | Met EX-BIN 1614 | -10/Exiles | Aligned with FarCom system 1615 | -10/Exiles | Given EX-Vault access code 1639 | -10/Exiles | Opened EX-Vault 1648 | -10/Exiles | Found Field Lobotomy Kit 1682 | -10/Exiles | Warned to stay clear of 0b10 Research branches 1710 | -10/Exiles | Met EX-DEC 1745 | -10/Exiles | Discovered new exit (range 14) 1758 | -10/Exiles | Left Exiles lab with Field Lobotomy Kit 1758 | -10/Exiles | Entered Mines 1765 | -9/Mines | Received a Rocket Launcher from a helpful Derelict 1788 | -9/Mines | Met a Derelict bent on vengeance 1813 | -9/Mines | Met a Derelict who couldn't figure out how to use a Trap Extractor 1937 | -9/Mines | Discovered new exit (range 7) 1953 | -9/Mines | Learned Materials terminal intel 1968 | -9/Mines | Entered Materials 1968 | -8/Materials | Evolved 4 slots: Propulsion x2, Utility x2 1970 | -8/Materials | Loaded intel: 12 terminal locations 2483 | -8/Materials | Build established: Assassin 2926 | -8/Materials | Build established: Skirmisher 2965 | -8/Materials | Discovered new exit (range 5) 3305 | -8/Materials | Discovered new exit (range 16) 3682 | -8/Materials | Identified exit to Factory 4494 | -8/Materials | Build established: Mutant 4796 | -8/Materials | Entered Factory 4796 | -7/Factory | Evolved 2 slots: Utility x2 4876 | -7/Factory | Discovered new exit (range 12) 5301 | -7/Factory | Discovered new exit (range 5) 5525 | -7/Factory | Discovered new exit (range 9) 5743 | -7/Factory | Identified exit to Storage 5743 | -7/Factory | Identified exit to Lower Caves 5806 | -7/Factory | Entered Lower Caves 5806 | -7/Lower Caves | Accompanied by 1 ally 5906 | -7/Lower Caves | Encountered a Warlord checkpoint 5924 | -7/Lower Caves | Learned Factory terminal intel 5934 | -7/Lower Caves | Build established: Sprinter 5966 | -7/Lower Caves | Found Alien Artifact 5966 | -7/Lower Caves | Identified Core Expander 5966 | -7/Lower Caves | Installed Core Expander, added new Power slot 5973 | -7/Lower Caves | Identified exit to Lower Caves 5982 | -7/Lower Caves | Spotted B-75 Beast 6034 | -7/Lower Caves | Assimilated B-75 Beast with FLK Orb 6245 | -7/Lower Caves | Entered another Lower Caves area 6245 | -7/Lower Caves | Accompanied by 1 ally 6279 | -7/Lower Caves | Learned location of Extension (-4) 6279 | -7/Lower Caves | Learned location of 1 exit from Research 6279 | -7/Lower Caves | Learned Factory stockpile data 6279 | -7/Lower Caves | Learned Armory stockpile data 6279 | -7/Lower Caves | Learned Research security intel 6279 | -7/Lower Caves | Learned Factory garrison access intel 6286 | -7/Lower Caves | Destroyed RZ-MUH(g) 6630 | -7/Lower Caves | Discovered new exit (range 8) 6648 | -7/Lower Caves | Identified exit to Zion 6655 | -7/Lower Caves | Entered Zion 6655 | -7/Zion | Accompanied by 1 ally 6678 | -7/Zion | System corruption cleaned by Quarantine Array 6694 | -7/Zion | Discovered new exit (range 11) 6775 | -7/Zion | Learned Factory terminal intel 6839 | -7/Zion | Given the Hacking Drone Bay 6842 | -7/Zion | Gained Derelict followers 6984 | -7/Zion | Rebuked by Imprinter 7139 | -7/Zion | Found Prototype Device 7171 | -7/Zion | Identified Hacking Drone Bay 7288 | -7/Zion | Entered Proximity Caves 7288 | -6/Proximity Caves | Accompanied by 7 allies 7388 | -6/Proximity Caves | Spotter reported a threat 7569 | -6/Proximity Caves | Lost 3 allies 7751 | -6/Proximity Caves | Discovered new exit (range 5) 7798 | -6/Proximity Caves | Entered Factory 7798 | -6/Factory | Accompanied by 2 allies 7798 | -6/Factory | Evolved 2 slots: Propulsion x1, Utility x1 7800 | -6/Factory | Loaded intel: 26 terminal locations 7801 | -6/Factory | Loaded intel: 4 garrison access locations 8062 | -6/Factory | Discovered new exit (range 4) 8102 | -6/Factory | Build established: Infiltrator-Sprinter 8209 | -6/Factory | Identified exit to Lower Caves 8453 | -6/Factory | Build established: Sprinter 8480 | -6/Factory | Identified exit to Factory 8569 | -6/Factory | Fabricated Adv. Melee Analysis Suite (x1) 8787 | -6/Factory | Entered Lower Caves 8787 | -6/Lower Caves | Accompanied by 2 allies 8921 | -6/Lower Caves | Discovered new exit (range 6) 8922 | -6/Lower Caves | Entered another Lower Caves area 8936 | -6/Lower Caves | Discovered exit to Factory (range 4) 8972 | -6/Lower Caves | Acquired the password to a Derelict Tinkerer's latest research 8978 | -6/Lower Caves | Found Prototype Special Weapon 8978 | -6/Lower Caves | Identified Molecular Deconstructor 9033 | -6/Lower Caves | Discovered new exit (range 11) 9057 | -6/Lower Caves | Entered Data Miner 9057 | -6/Data Miner | Discovered new exit (range 6) 9062 | -6/Data Miner | Met Data Miner 9068 | -6/Data Miner | Received God Mode back door access code from Data Miner 9069 | -6/Data Miner | Acquired the access code to Warlord's prototype stash 9069 | -6/Data Miner | Learned location of Section 7 (-2) 9091 | -6/Data Miner | Data Conduit disabled 9117 | -6/Data Miner | Entered Proximity Caves 9179 | -5/Proximity Caves | Learned Factory emergency access door positions 9204 | -5/Proximity Caves | Discovered exit to Factory (range 9) 9205 | -5/Proximity Caves | Entered Factory 9205 | -5/Factory | Evolved 2 slots: Propulsion x1, Utility x1 9207 | -5/Factory | Loaded intel: 26 terminal locations 9450 | -5/Factory | Repaired Cld. VTOL Module 9505 | -5/Factory | Repaired Lyr. Medium Armor Plating 9595 | -5/Factory | Discovered new exit (range 7) 9610 | -5/Factory | Identified exit to Upper Caves 9626 | -5/Factory | Entered Upper Caves 9641 | -5/Upper Caves | Learned Factory security intel 9723 | -5/Upper Caves | Discovered new exit (range 10) 9724 | -5/Upper Caves | Entered another Upper Caves area 9801 | -5/Upper Caves | Learned location of 1 exit from Factory 9801 | -5/Upper Caves | Spotted B-75 Beast 9807 | -5/Upper Caves | Learned location of 1 exit from Factory 10052 | -5/Upper Caves | Discovered new exit (range 5) 10053 | -5/Upper Caves | Entered Warlord 10083 | -5/Warlord | Found Prototype Device 10083 | -5/Warlord | Identified Minesniffer Drone Bay 10106 | -5/Warlord | Visited the Vortex Lab 10113 | -5/Warlord | Warlord's base attacked by MAIN.C 10126 | -5/Warlord | Met Warlord 10128 | -5/Warlord | Opened Warlord's prototype stash 10130 | -5/Warlord | Found Prototype Reactor 10130 | -5/Warlord | Identified Vortex Chain Reactor 10146 | -5/Warlord | Found Prototype Processor 10146 | -5/Warlord | Identified Exp. Core Analyzer 10149 | -5/Warlord | Found Prototype Hackware 10149 | -5/Warlord | Identified System Mapper 10463 | -5/Warlord | Warlord forces counterattacked 10472 | -5/Warlord | Spotted Striker 10531 | -5/Warlord | Spotted B-86 Titan 10534 | -5/Warlord | Spotted B-75 Beast 10546 | -5/Warlord | Spotted Striker 10576 | -5/Warlord | Spotted Striker 10607 | -5/Warlord | Discovered new exit (range 14) 10620 | -5/Warlord | Entered Proximity Caves 10620 | -4/Proximity Caves | Accompanied by 2 allies 10621 | -4/Proximity Caves | Lost 21 allies 10811 | -4/Proximity Caves | Discovered new exit (range 6) 10835 | -4/Proximity Caves | System corruption reached 10% 10836 | -4/Proximity Caves | Entered Factory 10836 | -4/Factory | Accompanied by 2 allies 10836 | -4/Factory | Evolved 2 slots: Utility x2 10837 | -4/Factory | Identified exit to Research 10837 | -4/Factory | Identified exit to Upper Caves 10837 | -4/Factory | Identified exit to Extension 10878 | -4/Factory | Build established: Hacker-Sprinter 11044 | -4/Factory | Fabricated W-44 Eye? 11108 | -4/Factory | Lost 4 allies 11847 | -4/Factory | Crushed by falling debris 11847 | -4/Factory | System corruption reached 10% 11878 | -4/Factory | Lost 3 parts (2n1u) 12454 | -4/Factory | Lost 3 parts (1p1n1u) 12475 | -4/Factory | Released all parts (12) 12788 | -4/Factory | Cargo convoy interrupted 12840 | -4/Factory | Lost 4 allies 12862 | -4/Factory | Assimilated Y-64 Sentinel with FLK Orb 12866 | -4/Factory | Build established: Scavenger-Mutant 12874 | -4/Factory | First assault squad dispatched 12876 | -4/Factory | Assimilated P-70 Sage with FLK Orb 12891 | -4/Factory | Found Prototype Processor 12891 | -4/Factory | Identified Exp. Signal Interpreter 12912 | -4/Factory | P-70 Sage assimilated allied Sentinel 7a 12921 | -4/Factory | Released all parts (16) 12924 | -4/Factory | Core integrity fell below 50% 12941 | -4/Factory | Core integrity fell below 20% 12953 | -4/Factory | Spotted B-86 Titan 12956 | -4/Factory | Destroyed by B-86 Titan with Railgun Last Messages --------------- 12922_ The unstable cave ceiling collapses. 12922_ Dropped Dispersion Rifle. 12922_ P-70 Sage resets P-70 Sage, system corruption cleaned. 12922_ Acquired Adv. Sensor Array. 12923_ K-01 Serf collects debris. 12923_ Slug penetrates P-70 Sage. 12925_ P-70 Sage destroyed. 12925_ Penetrated by Slug. 12926_ K-01 Serf collects debris. 12935_ System corrupted: Matter fused (-7). 12938_ O-16 Technician: "IFF HANDSHAKE FAILED. SECURING TERMINAL." 12941_ K-01 Serf cleans the Fusion Modulator. 12942_ Acquired Adv. Melee Analysis Suite. 12943_ Cld. VTOL Module destroyed. 12943_ ALERT: Hostiles spotted, dispatching reinforcements to Terminal F020. 12945_ Acquired Adv. Melee Analysis Suite. 12950_ TPQX4VKFLET U0EYFRJDTQVI&7T#YU 12954_ VTOL Module destroyed. 12956_ Spear destroyed. Map ----- +----------------------------------------------------+ | ?????????????????????????????????????????????????? | | ?????????????????????????????????????????????????? | | ?????????????????????????????????????????????????? | | ?????????????????????????????????????????????????? | | ?????????????????????????????????????????????????? | | ?????????????????????????????????????????????????? | | ?????????????????????????????????????????????????? | | ?????????????????????????????????????????????????? | | ?????????????????????????????????????????????????? | | ?????????????????????????????????????????????????? | | ?????????????????????????????????????????????????? | | ?????????????????????????????????????????????????? | | ?????????????????????????????????????????????????? | | ?????????????????????##??????????????????????????? | | ?????????????????????BB??????????????????????????? | | ?????????????????????BB######????????????????????? | | ????????????????????? #????????????????????? | | ??????????????????? ? #????????????????????? | | ?????????????????" """ #????????????????????? | | ????????????????Y" """ +????????????????????? | | ???????????????? ^ """ #????????????????????? | | ???????????????? #???? ???????????????? | | ????????????????""" """ #??"" ???????????????? | | ??????????????? """ """ # """ ???????????????? | | ???????????? """ """ ; """ ???????????????? | | ???????????# ^ @ #????????????????????? | | ?????????????? """ """ #??????????????????### | | ?????????????????"" """ ! #???????####+######"T" | | ?????????????????"" """ ######### o | | ????????????? ssss | | ????????????# ########### | | ????????????# #"""T"""###?????????#pp """ """ "" | | ??>?????!???#???#########???????????# """ """ "" | | ????????????????????????????????????# """ """ "" | | ????????????????????????????????????# | | ????????????????????????????????????# !m "" | | ????????????????????????????????????# !! "" | | ????????????????????????????????????# ! "" | | ????????????????????????????????????# = | | ????????????????????????????????????# [ | | ????????????????????????w???????????# ####/### | | ????????????????????????????????????# # | | ????????????????????????????????????# # """ | | ????????????????????????????????????+ + """ | | ????????????????????????????????????# # """ | | ????????????????????????????????????# # | | ????????????????????????????????????# # | | ????????????????????????????????????# # | | ????????????????????????????????????# # """ | | ???????????????????????????????????? ? "R | +----------------------------------------------------+ Best States ------------- Heat Dissipation 74 Energy Generation 64 Energy Capacity 275 Matter Stores 300 Matter Capacity 300 Sight Range 22 Robot Scan Range 16 Terrain Scan Density 10 Jamming Range 14 Power Amplification 30 Additional Mass Support 16 Armor Coverage 225 Power Shielding 66 Utility Shielding 66 Melee Speed Boost 20 Evasion (%) 72 Melee Accuracy 16 Core Analysis 8 Recoil Reduction 3 Offensive Hacking 34 Defensive Hacking 10 Item Schematics ----------------- Adv. ECM Suite | -7/Factory | Scanalyzed Neutrino Core | -7/Zion | Archive Cloaking Device | -7/Zion | Archive Imp. Deuterium Engine | -7/Zion | Archive Hvy. Pick | -7/Zion | Archive Spear | -7/Zion | Archive Lgt. Angular Momentum Engine | -7/Zion | Archive Greatsword | -7/Zion | Archive Thermal Shield | -7/Zion | Archive Imp. Coolant Injector | -7/Zion | Archive Mak. Hover Unit | -7/Zion | Archive Adv. Assault Cannon | -7/Zion | Archive Imp. Medium Armor Plating | -7/Zion | Archive Fusion Compressor | -7/Zion | Archive Adv. Melee Analysis Suite | -6/Factory | Scanalyzed Cld. VTOL Module | -6/Factory | Scanalyzed Hvy. Gauss Cannon | -6/Data Miner | Free Point Defense System | -6/Data Miner | Free Hardcell Cannon | -6/Data Miner | Free Adv. Trap Scanner | -6/Data Miner | Free Imp. Gyrokinetic Inverter | -6/Data Miner | Free Imp. KE Penetrator | -6/Data Miner | Free Imp. Energy Well | -6/Data Miner | Free Cld. Gravmag System | -6/Data Miner | Free Lgt. Regenerative Plating | -6/Data Miner | Free Combat Drone Bay | -6/Data Miner | Free Robot Schematics ------------------ A-02 Transporter | -7/Zion | Archive S-27 Virus | -7/Zion | Archive G-47 Trooper | -7/Zion | Archive H-77 Assassin | -7/Zion | Archive A-15 Conveyor | -6/Data Miner | Free X-67 Chaingunner | -6/Data Miner | Free M-22 Extractor | -6/Data Miner | Free Fabricated ------------ Adv. Melee Analysis Suite | x1 | -6/Factory | Preloaded W-44 Eye | x2 | -4/Factory | Preloaded Alien Tech Used ----------------- Core Expander Achievements -------------- Adventurer Alien Tech Cya! Deadly Force No Signal Reappropriation Challenges ------------ None Game ------ Seed ThunderTiamatReconfigurator Manual? 0 Play Time 08:16:12 Cumulative 85.0 hours Start 2024.04.21 @ 15:15:22 End 2024.04.22 @ 20:52:16 Sessions 11 Manual Loads 0 Difficulty Rogue Special Mode None Game No. 97 Rogue 97 Adventurer 0 Explorer 0 Win Type - Total 2 Types 2/0/0/0/0/0/0/0/0 Lore% 36 Gallery% 43 Achievement% 39 Wizard Run 0 Options --------- Layout 0 ASCII 0 Keyboard 0 Movement Mouse Keybinds 0 Fullscreen 2 Font 18/X11Bold Map View 76x50 Zoom Use 0% Tactical HUD 1 Map Filters NONE Filters NONE Steam 1 RUN: 410ae731-0428-4398-829b-e37611bbffd8